[Event "MČR juniorů a juniorek v rapid šachu 2024"]
[Site "Hotel Fit Fun, Harrachov, Czech Republic"]
[Date "2024.09.21"]
[Round "2.23"]
[White "Garabik Marek"]
[Black "Vratil Tomas"]
[Result "1-0"]
[TimeControl "20+5"]
[WhiteFideId "23717742"]
[BlackFideId "23756870"]
[WhiteElo "1933"]
[BlackElo "1671"]

1. e4 {[%clk 00:20:09]} {[%emt 00:02:36]} c6 {[%clk 00:20:07]} {[%emt
00:00:04]} 2. d4 {[%clk 00:20:13]} {[%emt 00:00:01]} d5 {[%clk 00:20:10]}
{[%emt 00:00:02]} 3. exd5 {[%clk 00:20:16]} {[%emt 00:00:02]} cxd5 {[%clk
00:20:13]} {[%emt 00:00:01]} 4. Bd3 {[%clk 00:20:18]} {[%emt 00:00:03]} Nc6
{[%clk 00:20:10]} {[%emt 00:00:08]} 5. c3 {[%clk 00:20:21]} {[%emt 00:00:02]}
Nf6 {[%clk 00:19:54]} {[%emt 00:00:20]} 6. Bf4 {[%clk 00:19:56]} {[%emt
00:00:31]} Qb6 {[%clk 00:18:59]} {[%emt 00:01:00]} 7. Qb3 {[%clk 00:19:18]}
{[%emt 00:00:43]} Qxb3 {[%clk 00:18:22]} {[%emt 00:00:42]} 8. axb3 {[%clk
00:19:23]} e6 {[%clk 00:18:13]} {[%emt 00:00:14]} 9. Nd2 {[%clk 00:19:24]}
{[%emt 00:00:03]} Be7 {[%clk 00:18:13]} {[%emt 00:00:05]} 10. Ngf3 {[%clk
00:19:27]} {[%emt 00:00:02]} O-O {[%clk 00:18:15]} {[%emt 00:00:03]} 11. O-O
{[%clk 00:19:31]} {[%emt 00:00:02]} Bd7 {[%clk 00:18:18]} {[%emt 00:00:02]} 12.
h3 {[%clk 00:19:23]} {[%emt 00:00:12]} h6 {[%clk 00:17:39]} {[%emt 00:00:45]}
13. Bg3 {[%clk 00:19:21]} {[%emt 00:00:06]} Rac8 {[%clk 00:16:47]} {[%emt
00:00:56]} 14. Ne5 {[%clk 00:19:14]} {[%emt 00:00:14]} Nxe5 {[%clk 00:16:31]}
{[%emt 00:00:21]} 15. dxe5 {[%clk 00:19:10]} {[%emt 00:00:09]} Nh5 {[%clk
00:15:44]} {[%emt 00:00:51]} 16. Bh2 {[%clk 00:18:45]} {[%emt 00:00:30]} g6
{[%clk 00:14:46]} {[%emt 00:01:03]} 17. Rxa7 {[%clk 00:18:09]} {[%emt
00:00:42]} Bc6 {[%clk 00:14:47]} {[%emt 00:00:03]} 18. Raa1 {[%clk 00:17:52]}
{[%emt 00:00:22]} f5 {[%clk 00:13:57]} {[%emt 00:00:55]} 19. Nf3 {[%clk
00:17:35]} {[%emt 00:00:22]} Kh8 {[%clk 00:13:27]} {[%emt 00:00:36]} 20. Nd4
{[%clk 00:17:37]} {[%emt 00:00:02]} Bd7 {[%clk 00:12:33]} {[%emt 00:00:59]} 21.
Be2 {[%clk 00:17:23]} {[%emt 00:00:20]} Ng7 {[%clk 00:11:53]} {[%emt 00:00:45]}
22. Bf4 {[%clk 00:16:49]} {[%emt 00:00:39]} g5 {[%clk 00:11:50]} {[%emt
00:00:07]} 23. Bd2 {[%clk 00:16:52]} {[%emt 00:00:02]} f4 {[%clk 00:11:44]}
{[%emt 00:00:11]} 24. g4 {[%emt 00:06:44]} fxg3 25. fxg3 {[%clk 00:14:46]}
{[%emt 00:01:07]} Bc5 {[%clk 00:05:50]} {[%emt 00:00:56]} 26. g4 {[%clk
00:13:07]} {[%emt 00:01:44]} Kg8 {[%clk 00:03:07]} {[%emt 00:02:48]} 27. Bd3
{[%clk 00:11:19]} {[%emt 00:01:53]} Be8 {[%clk 00:02:10]} {[%emt 00:01:01]} 28.
b4 {[%clk 00:11:17]} {[%emt 00:00:08]} Bb6 {[%clk 00:02:08]} {[%emt 00:00:05]}
29. Kg2 {[%clk 00:10:02]} {[%emt 00:01:22]} Rc7 {[%clk 00:01:10]} {[%emt
00:01:03]} 30. Rxf8+ {[%clk 00:09:09]} {[%emt 00:00:58]} Kxf8 {[%clk 00:01:13]}
{[%emt 00:00:02]} 31. Rf1+ {[%clk 00:09:10]} {[%emt 00:00:04]} Kg8 {[%clk
00:01:14]} {[%emt 00:00:03]} 32. Be3 {[%clk 00:08:58]} {[%emt 00:00:17]} Rf7
{[%clk 00:00:51]} {[%emt 00:00:28]} 33. Ra1 {[%clk 00:07:55]} {[%emt 00:01:09]}
Bd8 {[%clk 00:00:27]} {[%emt 00:00:29]} 34. Ra8 {[%clk 00:07:39]} {[%emt
00:00:21]} Bb6 {[%clk 00:00:27]} {[%emt 00:00:05]} 35. Ra1 {[%clk 00:07:11]}
{[%emt 00:00:33]} Bc7 {[%clk 00:00:30]} {[%emt 00:00:02]} 36. Nf3 {[%clk
00:06:59]} {[%emt 00:00:17]} Bd8 {[%clk 00:00:33]} {[%emt 00:00:02]} 37. Bc5
{[%clk 00:06:55]} {[%emt 00:00:09]} h5 {[%clk 00:00:33]} {[%emt 00:00:04]} 38.
Ra8 {[%clk 00:06:46]} {[%emt 00:00:14]} hxg4 {[%clk 00:00:29]} {[%emt
00:00:10]} 39. hxg4 {[%clk 00:06:49]} {[%emt 00:00:02]} Bc7 {[%clk 00:00:30]}
{[%emt 00:00:03]} 40. Bg6 {[%clk 00:06:48]} {[%emt 00:00:07]} Re7 {[%clk
00:00:33]} {[%emt 00:00:02]} 41. Bxe7 {[%clk 00:06:50]} {[%emt 00:00:03]} 1-0



[ePGN "0.1;DGT LiveChess/2.2.6"]

[Event "MČR juniorů a juniorek v rapid šachu 2024"]
[Site "Hotel Fit Fun, Harrachov, Czech Republic"]
[Date "2024.09.21"]
[Round "2.24"]
[White "Stejskal Michal"]
[Black "Slivova Linda"]
[Result "1-0"]
[TimeControl "20+5"]
[WhiteFideId "398195"]
[BlackFideId "23709294"]
[WhiteElo "1926"]
[BlackElo "1630"]

1. e4 {[%clk 00:20:07]} {[%emt 00:00:03]} d5 {[%clk 00:20:10]} 2. exd5 {[%clk
00:20:08]} {[%emt 00:00:05]} Qxd5 {[%clk 00:20:13]} {[%emt 00:00:02]} 3. Nc3
{[%clk 00:20:11]} {[%emt 00:00:01]} Qd6 {[%clk 00:20:17]} {[%emt 00:00:02]} 4.
d4 {[%clk 00:20:14]} {[%emt 00:00:02]} Nf6 {[%clk 00:20:20]} {[%emt 00:00:02]}
5. Be3 {[%clk 00:20:13]} {[%emt 00:00:05]} c6 {[%clk 00:20:23]} {[%emt
00:00:03]} 6. Be2 {[%clk 00:20:13]} {[%emt 00:00:04]} Bf5 {[%clk 00:20:21]}
{[%emt 00:00:08]} 7. Bf3 {[%clk 00:20:09]} {[%emt 00:00:08]} e6 {[%clk
00:19:50]} {[%emt 00:00:37]} 8. Nge2 {[%clk 00:20:02]} {[%emt 00:00:12]} Qc7
{[%clk 00:18:34]} {[%emt 00:01:21]} 9. Qd2 {[%clk 00:19:17]} {[%emt 00:00:48]}
Nbd7 {[%clk 00:18:16]} {[%emt 00:00:25]} 10. O-O {[%clk 00:19:08]} {[%emt
00:00:14]} Bd6 {[%clk 00:18:08]} {[%emt 00:00:13]} 11. Ng3 {[%clk 00:18:53]}
{[%emt 00:00:19]} Bg6 {[%clk 00:17:24]} {[%emt 00:00:50]} 12. Rfe1 {[%clk
00:17:54]} {[%emt 00:01:03]} O-O {[%clk 00:17:11]} {[%emt 00:00:18]} 13. Nce2
{[%clk 00:17:19]} {[%emt 00:00:40]} Nd5 {[%clk 00:16:08]} {[%emt 00:01:09]} 14.
c4 {[%clk 00:16:21]} {[%emt 00:01:03]} Bb4 {[%clk 00:12:27]} {[%emt 00:03:45]}
15. Nc3 {[%clk 00:16:24]} {[%emt 00:00:02]} Nxe3 {[%clk 00:11:59]} {[%emt
00:00:34]} 16. Qxe3 {[%clk 00:16:26]} {[%emt 00:00:03]} Rad8 {[%clk 00:10:44]}
{[%emt 00:01:20]} 17. a3 {[%clk 00:16:20]} {[%emt 00:00:11]} Bd6 {[%clk
00:10:28]} {[%emt 00:00:21]} 18. Rad1 {[%clk 00:14:38]} {[%emt 00:01:47]} Bc2
{[%clk 00:09:01]} {[%emt 00:01:33]} 19. Ra1 {[%clk 00:13:52]} {[%emt 00:00:50]}
Bf4 {[%clk 00:09:00]} {[%emt 00:00:06]} 20. Qe2 {[%clk 00:13:31]} {[%emt
00:00:26]} Bg6 {[%clk 00:08:57]} {[%emt 00:00:08]} 21. d5 {[%clk 00:13:21]}
{[%emt 00:00:15]} exd5 {[%clk 00:07:03]} {[%emt 00:02:00]} 22. cxd5 {[%clk
00:13:21]} {[%emt 00:00:04]} c5 {[%clk 00:06:04]} {[%emt 00:01:04]} 23. Rad1
{[%clk 00:09:34]} {[%emt 00:03:52]} Ne5 {[%clk 00:04:51]} {[%emt 00:01:18]} 24.
Be4 {[%clk 00:09:25]} {[%emt 00:00:14]} f5 {[%clk 00:04:02]} {[%emt 00:00:54]}
25. d6 {[%clk 00:08:51]} {[%emt 00:00:38]} Qd7 {[%clk 00:02:32]} {[%emt
00:01:35]} 26. Bd5+ {[%clk 00:08:39]} {[%emt 00:00:18]} Kh8 {[%clk 00:01:47]}
{[%emt 00:00:50]} 27. Bb3 {[%clk 00:08:20]} {[%emt 00:00:24]} Bf7 {[%clk
00:01:13]} {[%emt 00:00:39]} 28. Ba4 {[%clk 00:08:18]} {[%emt 00:00:07]} Qe6
{[%clk 00:01:06]} {[%emt 00:00:12]} 29. d7 {[%clk 00:07:59]} {[%emt 00:00:25]}
Qb6 {[%clk 00:00:29]} {[%emt 00:00:42]} 30. Nxf5 {[%clk 00:07:14]} {[%emt
00:00:49]} Bc4 {[%clk 00:00:28]} {[%emt 00:00:07]} 31. Qe4 {[%clk 00:07:11]}
{[%emt 00:00:07]} Bd3 {[%clk 00:00:14]} {[%emt 00:00:18]} 32. Rxd3 {[%clk
00:06:45]} {[%emt 00:00:32]} Nxd3 {[%clk 00:00:18]} {[%emt 00:00:01]} 33. Qxd3
{[%clk 00:06:48]} {[%emt 00:00:02]} Qxb2 {[%clk 00:00:13]} {[%emt 00:00:10]} 34.
Nd5 {[%clk 00:05:50]} {[%emt 00:01:03]} Bd2 {[%clk 00:00:14]} {[%emt 00:00:03]}
35. Rb1 {[%clk 00:05:30]} {[%emt 00:00:26]} Qe5 {[%clk 00:00:16]} {[%emt
00:00:03]} 36. Ng3 {[%clk 00:04:08]} {[%emt 00:01:26]} Bg5 {[%clk 00:00:14]}
{[%emt 00:00:08]} 37. Qe4 {[%clk 00:03:45]} {[%emt 00:00:28]} Qd6 {[%clk
00:00:09]} {[%emt 00:00:10]} 38. Bc2 {[%clk 00:03:02]} {[%emt 00:00:47]} g6
{[%clk 00:00:09]} {[%emt 00:00:07]} 39. Ba4 {[%clk 00:03:02]} {[%emt 00:00:04]}
b6 {[%clk 00:00:13]} {[%emt 00:00:01]} 40. h4 {[%clk 00:02:43]} {[%emt
00:00:24]} Bh6 {[%clk 00:00:13]} {[%emt 00:00:05]} 41. Re1 {[%clk 00:02:42]}
{[%emt 00:00:05]} Bg7 {[%clk 00:00:12]} {[%emt 00:00:06]} 42. Qe6 {[%clk
00:02:39]} {[%emt 00:00:09]} Qf4 {[%clk 00:00:14]} {[%emt 00:00:02]} 43. Nxf4
{[%emt 00:00:02]} 1-0



[ePGN "0.1;DGT LiveChess/2.2.6"]

[Event "MČR juniorů a juniorek v rapid šachu 2024"]
[Site "Hotel Fit Fun, Harrachov, Czech Republic"]
[Date "2024.09.21"]
[Round "2.25"]
[White "Plzak David"]
[Black "Sulcova Tereza Radmila"]
[Result "0-1"]
[TimeControl "20+5"]
[WhiteFideId "23776234"]
[BlackFideId "395196"]
[WhiteElo "1625"]
[BlackElo "1800"]

1. e4 {[%clk 00:20:09]} g6 {[%clk 00:20:08]} {[%emt 00:00:03]} 2. d4 {[%clk
00:20:12]} {[%emt 00:00:02]} Nf6 {[%clk 00:20:11]} {[%emt 00:00:01]} 3. Nc3
{[%clk 00:20:09]} {[%emt 00:00:08]} d5 {[%clk 00:20:15]} {[%emt 00:00:02]} 4.
e5 {[%clk 00:19:42]} {[%emt 00:00:32]} Nh5 {[%clk 00:20:18]} 5. Be2 {[%clk
00:19:22]} {[%emt 00:00:25]} Ng7 {[%clk 00:20:21]} {[%emt 00:00:02]} 6. Bh6
{[%clk 00:18:50]} {[%emt 00:00:37]} c6 {[%clk 00:20:22]} {[%emt 00:00:04]} 7.
Qd2 {[%clk 00:18:45]} {[%emt 00:00:11]} Nd7 {[%clk 00:20:23]} {[%emt 00:00:04]}
8. h4 {[%clk 00:17:38]} {[%emt 00:01:11]} Nf5 {[%clk 00:19:17]} {[%emt
00:01:11]} 9. Bxf8 {[%clk 00:17:36]} {[%emt 00:00:07]} Nxf8 {[%clk 00:19:20]}
{[%emt 00:00:02]} 10. g4 {[%clk 00:17:10]} {[%emt 00:00:31]} Ng7 {[%clk
00:19:15]} {[%emt 00:00:10]} 11. h5 {[%clk 00:15:33]} {[%emt 00:01:43]} gxh5
{[%clk 00:19:13]} {[%emt 00:00:06]} 12. gxh5 {[%clk 00:15:36]} {[%emt
00:00:02]} Nf5 {[%clk 00:19:08]} {[%emt 00:00:10]} 13. Nf3 {[%clk 00:14:29]}
{[%emt 00:01:12]} Ne6 {[%clk 00:18:23]} {[%emt 00:00:50]} 14. O-O-O {[%clk
00:14:00]} {[%emt 00:00:34]} Qa5 {[%clk 00:17:55]} {[%emt 00:00:33]} 15. Qd3
{[%clk 00:13:23]} {[%emt 00:00:42]} Nf4 {[%clk 00:17:43]} {[%emt 00:00:17]} 16.
Qd2 {[%clk 00:12:28]} {[%emt 00:01:00]} Nxe2+ {[%clk 00:17:45]} {[%emt
00:00:03]} 17. Qxe2 {[%clk 00:12:24]} {[%emt 00:00:09]} b5 {[%clk 00:17:36]}
{[%emt 00:00:15]} 18. a3 {[%clk 00:11:37]} {[%emt 00:00:52]} b4 {[%clk
00:16:12]} {[%emt 00:01:29]} 19. axb4 {[%clk 00:11:40]} {[%emt 00:00:02]} Qxb4
{[%clk 00:16:14]} {[%emt 00:00:02]} 20. Ng5 {[%clk 00:06:50]} {[%emt 00:04:55]}
Rb8 {[%clk 00:13:34]} {[%emt 00:02:45]} 21. e6 {[%clk 00:05:02]} {[%emt
00:01:53]} fxe6 {[%clk 00:11:16]} {[%emt 00:02:24]} 22. Nxe6 {[%clk 00:04:11]}
{[%emt 00:00:56]} Bxe6 {[%clk 00:10:14]} {[%emt 00:01:06]} 23. Qxe6 {[%clk
00:04:10]} {[%emt 00:00:07]} Qxb2+ {[%clk 00:10:15]} {[%emt 00:00:04]} 24. Kd2
{[%clk 00:04:13]} {[%emt 00:00:01]} Nxd4 {[%clk 00:10:14]} {[%emt 00:00:06]} 25.
Ke1 {[%clk 00:01:41]} {[%emt 00:02:37]} Qxc3+ {[%clk 00:09:59]} {[%emt
00:00:20]} 26. Kf1 {[%clk 00:01:45]} Nxe6 {[%clk 00:10:01]} {[%emt 00:00:04]}
0-1



[ePGN "0.1;DGT LiveChess/2.2.6"]

[Event "MČR juniorů a juniorek v rapid šachu 2024"]
[Site "Hotel Fit Fun, Harrachov, Czech Republic"]
[Date "2024.09.21"]
[Round "2.26"]
[White "Stara Zuzana"]
[Black "Dufkova Tereza"]
[Result "1-0"]
[TimeControl "20+5"]
[WhiteFideId "23733543"]
[BlackFideId "23744383"]
[WhiteElo "1796"]
[BlackElo "1601"]

1. e4 {[%clk 00:20:09]} {[%emt 00:00:01]} d5 {[%clk 00:20:08]} {[%emt
00:00:02]} 2. exd5 {[%clk 00:20:12]} {[%emt 00:00:02]} Nf6 {[%clk 00:20:11]}
{[%emt 00:00:02]} 3. Nf3 {[%clk 00:20:09]} {[%emt 00:00:07]} Nxd5 {[%clk
00:19:59]} {[%emt 00:00:18]} 4. d4 {[%clk 00:20:11]} {[%emt 00:00:03]} Nc6
{[%clk 00:19:45]} {[%emt 00:00:19]} 5. c4 {[%clk 00:20:00]} {[%emt 00:00:16]}
Nf6 {[%clk 00:19:20]} {[%emt 00:00:31]} 6. Be2 {[%clk 00:19:51]} {[%emt
00:00:13]} Bg4 {[%clk 00:19:16]} {[%emt 00:00:10]} 7. Be3 {[%clk 00:19:53]}
{[%emt 00:00:02]} e6 {[%clk 00:15:13]} {[%emt 00:04:08]} 8. O-O {[%clk
00:19:53]} {[%emt 00:00:05]} Bh5 {[%clk 00:14:00]} {[%emt 00:01:18]} 9. h3
{[%clk 00:19:36]} {[%emt 00:00:22]} Qd7 {[%clk 00:12:38]} {[%emt 00:01:27]} 10.
Nc3 {[%clk 00:19:33]} {[%emt 00:00:08]} O-O-O {[%clk 00:12:24]} {[%emt
00:00:20]} 11. Qb3 {[%clk 00:17:22]} {[%emt 00:02:16]} Bg6 {[%clk 00:08:25]}
{[%emt 00:04:03]} 12. a3 {[%clk 00:16:33]} {[%emt 00:00:54]} Be7 {[%clk
00:05:46]} {[%emt 00:02:44]} 13. Qa4 {[%clk 00:13:04]} {[%emt 00:03:32]} a6
{[%clk 00:05:50]} {[%emt 00:00:04]} 14. b4 {[%clk 00:12:50]} {[%emt 00:00:19]}
Ne4 {[%clk 00:04:37]} {[%emt 00:01:17]} 15. Nxe4 {[%clk 00:12:15]} {[%emt
00:00:40]} Bxe4 {[%clk 00:04:40]} {[%emt 00:00:02]} 16. Rfd1 {[%clk 00:10:48]}
{[%emt 00:01:32]} Na7 {[%clk 00:02:11]} {[%emt 00:02:34]} 17. Qb3 {[%clk
00:10:36]} {[%emt 00:00:17]} Bc6 {[%clk 00:02:04]} {[%emt 00:00:11]} 18. Ne5
{[%clk 00:09:38]} {[%emt 00:01:04]} Qe8 {[%clk 00:01:48]} {[%emt 00:00:21]} 19.
a4 {[%clk 00:08:26]} {[%emt 00:01:17]} f6 {[%clk 00:01:51]} {[%emt 00:00:02]}
20. Nf3 {[%clk 00:08:20]} {[%emt 00:00:11]} e5 {[%clk 00:01:17]} {[%emt
00:00:40]} 21. d5 {[%clk 00:07:52]} {[%emt 00:00:32]} Bd7 {[%clk 00:01:21]}
{[%emt 00:00:02]} 22. Bxa7 {[%clk 00:07:55]} {[%emt 00:00:01]} b6 {[%clk
00:01:19]} {[%emt 00:00:08]} 23. c5 {[%clk 00:06:58]} {[%emt 00:01:01]} Kb7
{[%clk 00:01:13]} {[%emt 00:00:11]} 24. c6+ {[%clk 00:06:43]} {[%emt 00:00:20]}
Kxa7 {[%emt 00:00:03]} 25. cxd7 {[%clk 00:06:46]} {[%emt 00:00:01]} Rxd7 {[%emt
00:00:05]} 26. Nd2 {[%clk 00:04:52]} {[%emt 00:01:56]} g5 {[%clk 00:01:00]}
{[%emt 00:00:24]} 27. Bg4 {[%clk 00:04:45]} {[%emt 00:00:12]} Rd6 {[%clk
00:01:04]} {[%emt 00:00:02]} 28. Ne4 {[%clk 00:03:58]} {[%emt 00:00:52]} Rd8
{[%clk 00:00:57]} {[%emt 00:00:12]} 29. Qc4 {[%clk 00:04:01]} {[%emt 00:00:02]}
Rc8 {[%clk 00:00:49]} {[%emt 00:00:13]} 30. Be2 {[%clk 00:02:52]} {[%emt
00:01:14]} f5 {[%clk 00:00:44]} {[%emt 00:00:10]} 31. Qxa6+ {[%clk 00:02:55]}
{[%emt 00:00:01]} Kb8 {[%clk 00:00:46]} {[%emt 00:00:03]} 32. Bb5 {[%clk
00:02:53]} {[%emt 00:00:07]} c6 {[%clk 00:00:16]} {[%emt 00:00:36]} 33. Qxb6+
{[%clk 00:02:55]} {[%emt 00:00:02]} Ka8 {[%clk 00:00:17]} {[%emt 00:00:03]} 34.
Bxc6+ {[%clk 00:02:58]} {[%emt 00:00:03]} Rxc6 {[%clk 00:00:15]} {[%emt
00:00:07]} 35. dxc6 {[%clk 00:03:01]} {[%emt 00:00:02]} 1-0



[ePGN "0.1;DGT LiveChess/2.2.6"]

[Event "MČR juniorů a juniorek v rapid šachu 2024"]
[Site "Hotel Fit Fun, Harrachov, Czech Republic"]
[Date "2024.09.21"]
[Round "2.27"]
[White "Housa Jan"]
[Black "Vondra Filip"]
[Result "0-1"]
[TimeControl "20+5"]
[WhiteFideId "23736356"]
[BlackFideId "23725176"]
[WhiteElo "1788"]
[BlackElo "1598"]

1. d4 {[%clk 00:20:08]} d5 {[%clk 00:20:09]} {[%emt 00:00:03]} 2. c4 {[%clk
00:20:12]} {[%emt 00:00:01]} e6 {[%clk 00:20:13]} {[%emt 00:00:01]} 3. Nf3
{[%clk 00:20:15]} {[%emt 00:00:02]} c5 {[%clk 00:20:17]} 4. cxd5 {[%clk
00:20:15]} {[%emt 00:00:06]} exd5 {[%clk 00:20:21]} {[%emt 00:00:01]} 5. Nc3
{[%clk 00:19:53]} {[%emt 00:00:27]} Nc6 {[%clk 00:19:31]} {[%emt 00:00:55]} 6.
e3 {[%clk 00:19:23]} {[%emt 00:00:34]} Nf6 {[%clk 00:19:30]} {[%emt 00:00:06]}
7. Be2 {[%clk 00:19:08]} {[%emt 00:00:20]} Bg4 {[%clk 00:19:23]} {[%emt
00:00:12]} 8. O-O {[%emt 00:00:06]} Be7 9. b3 {[%clk 00:18:43]} {[%emt
00:00:30]} O-O {[%clk 00:19:13]} {[%emt 00:00:17]} 10. Bb2 {[%clk 00:18:17]}
{[%emt 00:00:32]} Rc8 {[%clk 00:18:07]} {[%emt 00:01:12]} 11. Rc1 {[%clk
00:17:41]} {[%emt 00:00:41]} b6 {[%clk 00:16:43]} {[%emt 00:01:28]} 12. Ne5
{[%clk 00:15:34]} {[%emt 00:02:12]} Bxe2 {[%clk 00:15:48]} {[%emt 00:01:00]} 13.
Nxe2 {[%clk 00:15:00]} {[%emt 00:00:40]} Nxe5 {[%clk 00:15:04]} {[%emt
00:00:47]} 14. dxe5 {[%clk 00:15:02]} {[%emt 00:00:04]} Ne4 {[%clk 00:14:50]}
{[%emt 00:00:19]} 15. Nf4 {[%clk 00:14:19]} {[%emt 00:00:47]} d4 {[%clk
00:13:04]} {[%emt 00:01:51]} 16. exd4 {[%clk 00:11:19]} {[%emt 00:03:06]} Bg5
{[%clk 00:13:03]} {[%emt 00:00:06]} 17. Qg4 {[%clk 00:09:59]} {[%emt 00:01:24]}
f5 {[%clk 00:09:48]} {[%emt 00:03:20]} 18. exf6 {[%clk 00:08:41]} {[%emt
00:01:23]} Qxf6 {[%clk 00:09:34]} {[%emt 00:00:18]} 19. Nh5 {[%clk 00:07:12]}
{[%emt 00:01:34]} Qh6 {[%clk 00:07:13]} {[%emt 00:02:26]} 20. dxc5 {[%clk
00:04:27]} {[%emt 00:02:50]} Bxc1 {[%clk 00:01:52]} {[%emt 00:05:27]} 21. Rxc1
{[%clk 00:03:34]} {[%emt 00:00:57]} Nxf2 {[%clk 00:00:30]} 22. Qc4+ {[%clk
00:01:30]} {[%emt 00:03:37]} Rf7 {[%emt 00:01:25]} 23. Rf1 Qe3 {[%clk
00:00:24]} 24. Bd4 {[%clk 00:00:10]} {[%emt 00:00:20]} Nh3+ {[%clk 00:00:08]}
{[%emt 00:00:22]} 25. Kh1 {[%clk 00:00:14]} {[%emt 00:00:01]} Nf2+ 26. Rxf2
{[%clk 00:00:15]} Qe1+ {[%clk 00:00:12]} {[%emt 00:00:04]} 27. Rf1 {[%clk
00:00:14]} {[%emt 00:00:30]} Qxf1+ {[%clk 00:00:19]} {[%emt 00:01:03]} 28. Qxf1
{[%clk 00:00:59]} {[%emt 00:00:20]} Rxf1+ {[%clk 00:00:24]} 29. Bg1 {[%clk
00:01:02]} {[%emt 00:00:02]} Re8 {[%clk 00:00:27]} 30. Ng3 {[%clk 00:00:53]}
{[%emt 00:00:14]} Rc1 {[%clk 00:00:25]} {[%emt 00:00:07]} 31. h3 {[%clk
00:00:29]} {[%emt 00:00:29]} Ree1 {[%clk 00:00:29]} {[%emt 00:00:01]} 32. Kh2
{[%clk 00:00:32]} {[%emt 00:00:02]} Rxg1 {[%clk 00:00:32]} {[%emt 00:00:02]} 33.
Ne2 {[%clk 00:00:36]} Rge1 {[%clk 00:00:36]} {[%emt 00:00:02]} 0-1



[ePGN "0.1;DGT LiveChess/2.2.6"]

[Event "MČR juniorů a juniorek v rapid šachu 2024"]
[Site "Hotel Fit Fun, Harrachov, Czech Republic"]
[Date "2024.09.21"]
[Round "2.28"]
[White "Taborska Aneta"]
[Black "Nagyova Daniela"]
[Result "0-1"]
[TimeControl "20+5"]
[WhiteFideId "23733039"]
[BlackFideId "390070"]
[WhiteElo "1582"]
[BlackElo "1787"]

1. d4 {[%clk 00:20:08]} Nf6 {[%clk 00:20:08]} {[%emt 00:00:02]} 2. Nf3 {[%clk
00:20:11]} {[%emt 00:00:02]} e6 {[%clk 00:20:00]} {[%emt 00:00:14]} 3. e3
{[%clk 00:20:13]} {[%emt 00:00:02]} Be7 {[%clk 00:19:41]} {[%emt 00:00:24]} 4.
Bd3 {[%clk 00:20:14]} {[%emt 00:00:04]} d5 {[%clk 00:19:20]} {[%emt 00:00:28]}
5. Qe2 {[%clk 00:20:15]} {[%emt 00:00:03]} Nbd7 {[%clk 00:18:24]} {[%emt
00:01:01]} 6. Nbd2 {[%clk 00:20:18]} {[%emt 00:00:02]} c5 {[%clk 00:18:11]}
{[%emt 00:00:18]} 7. c3 {[%clk 00:20:21]} {[%emt 00:00:01]} O-O {[%clk
00:17:52]} {[%emt 00:00:24]} 8. O-O {[%clk 00:20:08]} {[%emt 00:00:18]} b6
{[%clk 00:16:51]} {[%emt 00:01:07]} 9. e4 {[%clk 00:20:01]} {[%emt 00:00:11]}
dxe4 {[%clk 00:15:59]} {[%emt 00:00:58]} 10. Nxe4 {[%clk 00:20:02]} {[%emt
00:00:04]} Bb7 {[%clk 00:15:21]} {[%emt 00:00:43]} 11. Nxf6+ {[%clk 00:18:28]}
{[%emt 00:01:38]} Nxf6 {[%clk 00:14:56]} {[%emt 00:00:31]} 12. Rd1 {[%clk
00:18:06]} {[%emt 00:00:23]} Qc7 {[%clk 00:13:55]} {[%emt 00:01:09]} 13. Be3
{[%clk 00:16:10]} {[%emt 00:02:01]} Ng4 {[%clk 00:12:32]} {[%emt 00:01:29]} 14.
Ne5 {[%clk 00:12:49]} {[%emt 00:03:25]} Nxe5 {[%clk 00:10:43]} {[%emt
00:01:56]} 15. dxe5 {[%clk 00:12:45]} {[%emt 00:00:09]} Qxe5 {[%clk 00:10:35]}
{[%emt 00:00:12]} 16. Rd2 {[%clk 00:12:03]} {[%emt 00:00:47]} Rfd8 {[%clk
00:09:01]} {[%emt 00:01:39]} 17. Rad1 {[%clk 00:11:58]} {[%emt 00:00:09]} Kh8
{[%clk 00:08:22]} {[%emt 00:00:45]} 18. Qg4 {[%clk 00:11:29]} {[%emt 00:00:31]}
Qf6 {[%clk 00:06:57]} {[%emt 00:01:33]} 19. Qh3 {[%clk 00:08:30]} {[%emt
00:03:02]} h6 {[%clk 00:06:35]} {[%emt 00:00:29]} 20. Qg3 {[%clk 00:04:13]}
{[%emt 00:04:22]} Bd6 {[%clk 00:05:47]} {[%emt 00:00:53]} 21. Qg4 {[%clk
00:03:36]} {[%emt 00:00:40]} Be7 {[%clk 00:04:11]} {[%emt 00:01:42]} 22. Bf4
{[%clk 00:03:05]} {[%emt 00:00:32]} e5 {[%clk 00:03:49]} {[%emt 00:00:31]} 23.
Be3 {[%clk 00:02:44]} {[%emt 00:00:26]} Rd6 {[%clk 00:02:52]} {[%emt 00:01:02]}
24. Qh3 {[%clk 00:01:43]} {[%emt 00:01:05]} Rad8 {[%clk 00:02:34]} {[%emt
00:00:24]} 25. a3 {[%clk 00:01:30]} {[%emt 00:00:19]} e4 {[%clk 00:01:29]}
{[%emt 00:01:10]} 26. Be2 {[%clk 00:01:19]} {[%emt 00:00:13]} Rxd2 {[%clk
00:01:03]} {[%emt 00:00:33]} 27. Rxd2 {[%clk 00:01:22]} {[%emt 00:00:02]} Rxd2
{[%clk 00:01:03]} {[%emt 00:00:05]} 28. Bxd2 {[%clk 00:01:20]} {[%emt
00:00:07]} Qd6 {[%clk 00:00:55]} {[%emt 00:00:14]} 29. Qe3 {[%clk 00:01:14]}
{[%emt 00:00:10]} Bg5 {[%clk 00:00:54]} {[%emt 00:00:06]} 30. f4 {[%emt
00:01:15]} exf3 {[%clk 00:00:46]} {[%emt 00:00:11]} 31. Bxf3 {[%clk 00:00:09]}
{[%emt 00:00:03]} Bxe3+ {[%clk 00:00:47]} {[%emt 00:00:03]} 0-1



[ePGN "0.1;DGT LiveChess/2.2.6"]